[Event "2026 European Womens Championship"]
[Site "Batumi, GE"]
[Date "2026.06.03"]
[Round "9"]
[White "Liashkevich, Lizaveta"]
[Black "Urh, Zala"]
[Result "0-1"]
[Board "51"]
[TimeControl "5400+30"]
[WhiteFideId "13518658"]
[BlackFideId "14611481"]
[WhiteElo "2079"]
[BlackElo "2263"]
[WhiteTitle "WFM"]
[BlackTitle "WIM"]
[WhiteClock "0:07:27"]
[BlackClock "0:05:18"]
[Variant "Standard"]

1. d4 {[%clk 1:30:56]}  Nf6 {[%clk 1:30:55]} 2. c4 {[%clk 1:31:23]}  e6 {[%clk 1:31:18]} 3. Nf3 {[%clk 1:31:48]}  d5 {[%clk 1:31:43]}
4. Nc3 {[%clk 1:32:07]}  Bb4 {[%clk 1:32:06]} 5. cxd5 {[%clk 1:32:16]}  exd5 {[%clk 1:32:29]} 6. Bg5 {[%clk 1:32:29]}  Nbd7 {[%clk 1:28:41]}
7. e3 {[%clk 1:19:22]}  c5 {[%clk 1:24:30]} 8. Bd3 {[%clk 0:50:36]}  Qa5 {[%clk 1:21:49]} 9. Qc2 {[%clk 0:50:12]}  c4 {[%clk 1:21:30]}
10. Bf5 {[%clk 0:50:04]}  O-O {[%clk 1:21:19]} 11. O-O {[%clk 0:50:08]}  Re8 {[%clk 1:21:09]} 12. Ne2 {[%clk 0:41:51]}  g6 {[%clk 1:13:29]}
13. Bxd7 {[%clk 0:37:34]}  Nxd7 {[%clk 1:13:52]} 14. a3 {[%clk 0:36:40]}  Bf8 {[%clk 0:58:51]} 15. Nc3 {[%clk 0:30:27]}  Kg7 {[%clk 0:48:31]}
16. e4 {[%clk 0:22:29]}  dxe4 {[%clk 0:44:01]} 17. Nxe4 {[%clk 0:22:54]}  h6 {[%clk 0:42:42]} 18. Bd2 {[%clk 0:17:05]}  Qf5 {[%clk 0:42:26]}
19. Rfe1 {[%clk 0:16:20]}  Nb6 {[%clk 0:41:40]} 20. Re2 {[%clk 0:10:23]}  Be6 {[%clk 0:33:41]} 21. Rae1 {[%clk 0:09:05]}  Bd5 {[%clk 0:32:31]}
22. Bc3 {[%clk 0:08:49]}  Re6 {[%clk 0:29:13]} 23. Nfd2 {[%clk 0:06:08]}  Rae8 {[%clk 0:27:21]} 24. f3 {[%clk 0:06:13]}  h5 {[%clk 0:22:19]}
25. Qd1 {[%clk 0:05:16]}  h4 {[%clk 0:22:41]} 26. Nf2 {[%clk 0:05:01]}  Bd6 {[%clk 0:17:28]} 27. Rxe6 {[%clk 0:05:05]}  Rxe6 {[%clk 0:17:42]}
28. Nf1 {[%clk 0:04:24]}  Bf4 {[%clk 0:15:05]} 29. Nh3 {[%clk 0:03:33]}  Bh6 {[%clk 0:13:51]} 30. Nf2 {[%clk 0:03:35]}  Rxe1 {[%clk 0:09:39]}
31. Qxe1 {[%clk 0:02:39]}  Qe6 {[%clk 0:10:04]} 32. Qxe6 {[%clk 0:02:32]}  fxe6 {[%clk 0:10:30]} 33. Nd1 {[%clk 0:02:22]}  Na4 {[%clk 0:09:56]}
34. Bd2 {[%clk 0:02:29]}  Bxd2 {[%clk 0:08:05]} 35. Nxd2 {[%clk 0:02:58]}  Nxb2 {[%clk 0:08:29]} 36. Nc3 {[%clk 0:03:06]}  Nd3 {[%clk 0:06:22]}
37. g3 {[%clk 0:03:10]}  Ne1 {[%clk 0:05:05]} 38. Kf2 {[%clk 0:03:22]}  Nc2 {[%clk 0:05:31]} 39. Ndb1 {[%clk 0:01:31]}  Nxd4 {[%clk 0:04:55]}
40. f4 {[%clk 0:01:22]}  Bc6 {[%clk 0:02:25]} 41. a4 {[%clk 0:01:33]}  a6 {[%clk 0:27:34]} 42. Ke3 {[%clk 0:31:16]}  Nf5+ {[%clk 0:24:20]}
43. Kf2 {[%clk 0:31:41]}  b5 {[%clk 0:24:39]} 44. axb5 {[%clk 0:32:01]}  axb5 {[%clk 0:25:02]} 45. Na2 {[%clk 0:32:25]}  h3 {[%clk 0:17:17]}
46. Nb4 {[%clk 0:31:30]}  Bb7 {[%clk 0:16:23]} 47. Nc2 {[%clk 0:26:49]}  Kf7 {[%clk 0:10:35]} 48. Nc3 {[%clk 0:26:47]}  Nd6 {[%clk 0:09:26]}
49. Ke3 {[%clk 0:26:15]}  Ke7 {[%clk 0:07:39]} 50. g4 {[%clk 0:24:25]}  Kd7 {[%clk 0:04:58]} 51. Kd4 {[%clk 0:21:11]}  Bf3 {[%clk 0:05:11]}
52. g5 {[%clk 0:20:38]}  Kc6 {[%clk 0:04:23]} 53. Nb4+ {[%clk 0:10:39]}  Kb6 {[%clk 0:04:44]} 54. Ke5 {[%clk 0:10:13]}  Nf5 {[%clk 0:02:57]}
55. Kf6 {[%clk 0:08:55]}  Ka5 {[%clk 0:03:11]} 56. Nca2 {[%clk 0:08:40]}  Nh4 {[%clk 0:02:42]} 57. Nc2 {[%clk 0:06:38]}  Be4 {[%clk 0:02:46]}
58. Ne3 {[%clk 0:06:41]}  Bd3 {[%clk 0:02:08]} 59. Kxe6 {[%clk 0:06:50]}  b4 {[%clk 0:01:49]} 60. Nc1 {[%clk 0:07:14]}  b3 {[%clk 0:01:56]}
61. Nxd3 {[%clk 0:07:20]}  cxd3 {[%clk 0:02:21]} 62. Kd5 {[%clk 0:07:00]}  Kb4 {[%clk 0:02:18]} 63. Nd1 {[%clk 0:07:02]}  b2 {[%clk 0:01:39]}
64. Nxb2 {[%clk 0:07:25]}  Kc3 {[%clk 0:02:03]} 65. Nd1+ {[%clk 0:05:53]}  Kd2 {[%clk 0:02:29]} 66. Nb2 {[%clk 0:05:14]}  Kc2 {[%clk 0:02:31]}
67. Nc4 {[%clk 0:05:09]}  d2 {[%clk 0:02:50]} 68. Ke4 {[%clk 0:04:30]}  d1=Q {[%clk 0:02:48]} 69. Ne3+ {[%clk 0:04:59]}  Kd2 {[%clk 0:03:13]}
70. Nxd1 {[%clk 0:05:24]}  Kxd1 {[%clk 0:03:41]} 71. f5 {[%clk 0:05:35]}  Nxf5 {[%clk 0:04:00]} 72. Kf3 {[%clk 0:05:48]}  Ng7 {[%clk 0:03:37]}
73. Kg3 {[%clk 0:06:05]}  Ke2 {[%clk 0:04:01]} 74. Kxh3 {[%clk 0:06:28]}  Kf3 {[%clk 0:04:25]} 75. Kh4 {[%clk 0:06:54]}  Kf4 {[%clk 0:04:50]}
76. Kh3 {[%clk 0:07:14]}  Kxg5 {[%clk 0:05:15]} 77. Kg3 {[%clk 0:07:31]}  Nf5+ {[%clk 0:05:07]} 78. Kf3 {[%clk 0:07:50]}  Kh4 {[%clk 0:05:18]}
79. Ke4 {[%clk 0:07:27]} 0-1

[Event "2026 European Womens Championship"]
[Site "Batumi, GE"]
[Date "2026.06.03"]
[Round "9"]
[White "Subramanian, Anusha"]
[Black "Rodriguez Redondo, Adhara"]
[Result "0-1"]
[Board "52"]
[TimeControl "5400+30"]
[WhiteFideId "477710"]
[BlackFideId "32065698"]
[WhiteElo "2068"]
[BlackElo "2200"]
[WhiteTitle "WFM"]
[BlackTitle "WFM"]
[WhiteClock "0:29:38"]
[BlackClock "0:35:31"]
[Variant "Standard"]

1. c4 {[%clk 1:30:57]}  e6 {[%clk 1:30:53]} 2. Nc3 {[%clk 1:31:21]}  d5 {[%clk 1:30:56]} 3. d4 {[%clk 1:31:41]}  Bb4 {[%clk 1:30:51]}
4. cxd5 {[%clk 1:31:38]}  exd5 {[%clk 1:31:01]} 5. Nf3 {[%clk 1:31:27]}  Nf6 {[%clk 1:30:54]} 6. Bg5 {[%clk 1:30:34]}  h6 {[%clk 1:30:50]}
7. Bh4 {[%clk 1:30:11]}  O-O {[%clk 1:30:37]} 8. e3 {[%clk 1:30:19]}  Bf5 {[%clk 1:27:53]} 9. Bd3 {[%clk 1:30:10]}  Bxd3 {[%clk 1:27:09]}
10. Qxd3 {[%clk 1:30:34]}  c6 {[%clk 1:23:20]} 11. O-O {[%clk 1:30:34]}  Nbd7 {[%clk 1:18:37]} 12. Ne5 {[%clk 1:21:33]}  Qc7 {[%clk 1:00:54]}
13. f4 {[%clk 1:14:57]}  Qd6 {[%clk 0:52:19]} 14. Qf5 {[%clk 0:57:15]}  Rfe8 {[%clk 0:45:36]} 15. Qh3 {[%clk 0:51:32]}  Nf8 {[%clk 0:30:56]}
16. Bxf6 {[%clk 0:37:14]}  Qxf6 {[%clk 0:31:20]} 17. g4 {[%clk 0:34:43]}  Qe7 {[%clk 0:25:55]} 18. Rae1 {[%clk 0:29:59]}  f6 {[%clk 0:23:35]}
19. Nf3 {[%clk 0:29:36]}  Nh7 {[%clk 0:22:23]} 20. Qg2 {[%clk 0:26:09]}  Rad8 {[%clk 0:19:41]} 21. h4 {[%clk 0:25:13]}  Rd6 {[%clk 0:19:15]}
22. f5 {[%clk 0:22:47]}  Rd7 {[%clk 0:18:02]} 23. Re2 {[%clk 0:15:54]}  Qf7 {[%clk 0:17:34]} 24. Nd1 {[%clk 0:10:10]}  Rde7 {[%clk 0:17:25]}
25. a3 {[%clk 0:10:32]}  Bd6 {[%clk 0:17:03]} 26. Qh3 {[%clk 0:08:39]}  Re4 {[%clk 0:14:31]} 27. Rg2 {[%clk 0:08:20]}  c5 {[%clk 0:10:24]}
28. g5 {[%clk 0:07:19]}  Qh5 {[%clk 0:10:42]} 29. gxh6 {[%clk 0:02:06]}  Qxh6 {[%clk 0:11:02]} 30. Rg6 {[%clk 0:02:27]}  Qh5 {[%clk 0:10:58]}
31. Qg2 {[%clk 0:02:14]}  R8e7 {[%clk 0:07:32]} 32. Nc3 {[%clk 0:02:00]}  Nf8 {[%clk 0:07:14]} 33. Nxe4 {[%clk 0:02:04]}  dxe4 {[%clk 0:07:38]}
34. Nd2 {[%clk 0:00:40]}  Nxg6 {[%clk 0:07:54]} 35. fxg6 {[%clk 0:00:54]}  Qxh4 {[%clk 0:07:27]} 36. Nc4 {[%clk 0:00:44]}  Bc7 {[%clk 0:06:46]}
37. dxc5 {[%clk 0:00:38]}  Rd7 {[%clk 0:07:00]} 38. Rc1 {[%clk 0:00:32]}  Rd5 {[%clk 0:07:16]} 39. Kf1 {[%clk 0:00:32]}  Rg5 {[%clk 0:05:49]}
40. Qf2 {[%clk 0:00:39]}  Qh1+ {[%clk 0:05:31]} 41. Ke2 {[%clk 0:01:04]}  Qxc1 {[%clk 0:05:44]} 42. Nd2 {[%clk 0:29:38]}  Qh1 {[%clk 0:35:31]} 0-1

[Event "2026 European Womens Championship"]
[Site "Batumi, GE"]
[Date "2026.06.03"]
[Round "9"]
[White "Maisuradze, Nino"]
[Black "Mkrtchyan, Anahit H."]
[Result "0-1"]
[Board "53"]
[TimeControl "5400+30"]
[WhiteFideId "13601717"]
[BlackFideId "13314858"]
[WhiteElo "2198"]
[BlackElo "2107"]
[WhiteTitle "WGM"]
[WhiteClock "0:23:45"]
[BlackClock "0:01:38"]
[Variant "Standard"]

1. d4 {[%clk 1:30:59]}  Nf6 {[%clk 1:30:53]} 2. c4 {[%clk 1:31:26]}  g6 {[%clk 1:31:19]} 3. Nc3 {[%clk 1:31:53]}  Bg7 {[%clk 1:31:45]}
4. e4 {[%clk 1:32:20]}  d6 {[%clk 1:32:11]} 5. f4 {[%clk 1:32:39]}  O-O {[%clk 1:32:04]} 6. Nf3 {[%clk 1:33:08]}  c5 {[%clk 1:32:22]}
7. d5 {[%clk 1:33:34]}  e6 {[%clk 1:32:30]} 8. Be2 {[%clk 1:34:01]}  exd5 {[%clk 1:32:55]} 9. cxd5 {[%clk 1:34:29]}  Re8 {[%clk 1:33:19]}
10. e5 {[%clk 1:34:52]}  dxe5 {[%clk 1:33:42]} 11. fxe5 {[%clk 1:35:20]}  Ng4 {[%clk 1:34:04]} 12. Bg5 {[%clk 1:35:47]}  Qb6 {[%clk 1:32:35]}
13. O-O {[%clk 1:36:07]}  c4+ {[%clk 1:23:51]} 14. Kh1 {[%clk 1:36:08]}  Nxe5 {[%clk 1:08:06]} 15. d6 {[%clk 1:36:12]}  Be6 {[%clk 0:46:55]}
16. Nd5 {[%clk 1:31:34]}  Bxd5 {[%clk 0:45:56]} 17. Qxd5 {[%clk 1:32:00]}  Qc6 {[%clk 0:39:53]} 18. Qd2 {[%clk 1:30:31]}  Nbd7 {[%clk 0:35:40]}
19. Rac1 {[%clk 1:29:11]}  b5 {[%clk 0:25:01]} 20. b3 {[%clk 1:23:35]}  Rab8 {[%clk 0:16:40]} 21. Be7 {[%clk 1:19:43]}  Rec8 {[%clk 0:09:52]}
22. Qf4 {[%clk 1:15:59]}  Qd5 {[%clk 0:06:47]} 23. Rcd1 {[%clk 1:11:13]}  Nd3 {[%clk 0:05:45]} 24. Bxd3 {[%clk 0:51:47]}  cxd3 {[%clk 0:06:10]}
25. Qe3 {[%clk 0:51:34]}  Rc3 {[%clk 0:04:46]} 26. Qxa7 {[%clk 0:51:54]}  Qc6 {[%clk 0:02:37]} 27. Qe3 {[%clk 0:51:47]}  Qd5 {[%clk 0:01:41]}
28. Rd2 {[%clk 0:46:22]}  Rbc8 {[%clk 0:01:29]} 29. Rfd1 {[%clk 0:42:56]}  Qe6 {[%clk 0:00:33]} 30. Qxe6 {[%clk 0:36:46]}  fxe6 {[%clk 0:00:59]}
31. Ne1 {[%clk 0:36:30]}  e5 {[%clk 0:00:39]} 32. Rxd3 {[%clk 0:33:10]}  Rxd3 {[%clk 0:00:56]} 33. Nxd3 {[%clk 0:33:29]}  e4 {[%clk 0:00:53]}
34. Nb4 {[%clk 0:31:59]}  e3 {[%clk 0:00:42]} 35. Bh4 {[%clk 0:30:17]}  e2 {[%clk 0:00:39]} 36. Rg1 {[%clk 0:28:44]}  Bd4 {[%clk 0:00:52]}
37. Nd5 {[%clk 0:28:37]}  Rf8 {[%clk 0:00:55]} 38. Nf6+ {[%clk 0:24:33]}  Bxf6 {[%clk 0:01:15]} 39. Bf2 {[%clk 0:23:45]}  Bc3 {[%clk 0:01:38]} 0-1

[Event "2026 European Womens Championship"]
[Site "Batumi, GE"]
[Date "2026.06.03"]
[Round "9"]
[White "Jimenez Fernandez, Rebeca"]
[Black "Nenova, Andzhelika"]
[Result "0-1"]
[Board "54"]
[TimeControl "5400+30"]
[WhiteFideId "32070934"]
[BlackFideId "2939355"]
[WhiteElo "2166"]
[BlackElo "2072"]
[WhiteTitle "WFM"]
[WhiteClock "0:00:54"]
[BlackClock "0:04:39"]
[Variant "Standard"]

1. d4 {[%clk 1:30:58]}  d5 {[%clk 1:29:43]} 2. c4 {[%clk 1:31:23]}  e6 {[%clk 1:30:06]} 3. Nf3 {[%clk 1:31:47]}  Nf6 {[%clk 1:30:24]}
4. g3 {[%clk 1:32:13]}  Be7 {[%clk 1:30:44]} 5. Bg2 {[%clk 1:32:38]}  O-O {[%clk 1:31:07]} 6. O-O {[%clk 1:33:04]}  dxc4 {[%clk 1:31:31]}
7. Qc2 {[%clk 1:33:29]}  b5 {[%clk 1:31:54]} 8. a4 {[%clk 1:33:49]}  c6 {[%clk 1:21:38]} 9. axb5 {[%clk 1:34:09]}  cxb5 {[%clk 1:22:02]}
10. Ng5 {[%clk 1:34:29]}  h6 {[%clk 1:20:27]} 11. Bxa8 {[%clk 1:34:08]}  hxg5 {[%clk 1:20:52]} 12. Bg2 {[%clk 1:19:17]}  a5 {[%clk 1:16:21]}
13. Bd2 {[%clk 1:12:31]}  b4 {[%clk 1:10:33]} 14. Bxg5 {[%clk 1:11:14]}  Ba6 {[%clk 1:06:20]} 15. Nd2 {[%clk 1:08:08]}  b3 {[%clk 0:53:12]}
16. Qc1 {[%clk 1:03:48]}  Nd5 {[%clk 0:45:22]} 17. Bxe7 {[%clk 1:02:56]}  Qxe7 {[%clk 0:45:46]} 18. Rxa5 {[%clk 0:47:52]}  Qb4 {[%clk 0:44:42]}
19. Rxd5 {[%clk 0:23:43]}  exd5 {[%clk 0:45:06]} 20. Nb1 {[%clk 0:24:07]}  Nc6 {[%clk 0:36:58]} 21. Rd1 {[%clk 0:23:38]}  Qd6 {[%clk 0:27:01]}
22. Nc3 {[%clk 0:22:44]}  Nb4 {[%clk 0:27:15]} 23. Qg5 {[%clk 0:18:18]}  Bb7 {[%clk 0:27:02]} 24. h4 {[%clk 0:11:23]}  Ra8 {[%clk 0:16:29]}
25. Bf3 {[%clk 0:11:47]}  Ra6 {[%clk 0:15:18]} 26. Kg2 {[%clk 0:11:55]}  Qf6 {[%clk 0:07:47]} 27. Qh5 {[%clk 0:11:15]}  Qd8 {[%clk 0:07:06]}
28. Qe5 {[%clk 0:10:34]}  Re6 {[%clk 0:06:16]} 29. Qf4 {[%clk 0:10:51]}  Qd6 {[%clk 0:06:07]} 30. Qd2 {[%clk 0:07:18]}  Re8 {[%clk 0:05:32]}
31. Nb5 {[%clk 0:06:30]}  Qe7 {[%clk 0:05:29]} 32. h5 {[%clk 0:06:35]}  Bc6 {[%clk 0:04:51]} 33. Na3 {[%clk 0:06:38]}  Qd6 {[%clk 0:04:25]}
34. Rh1 {[%clk 0:06:12]}  Re6 {[%clk 0:04:43]} 35. Nb1 {[%clk 0:04:41]}  Kh7 {[%clk 0:02:59]} 36. Nc3 {[%clk 0:04:48]}  f5 {[%clk 0:02:22]}
37. Rh4 {[%clk 0:04:28]}  Qe7 {[%clk 0:01:50]} 38. Nd1 {[%clk 0:04:06]}  Nc2 {[%clk 0:01:54]} 39. Nc3 {[%clk 0:03:27]}  Nb4 {[%clk 0:02:19]}
40. Qf4 {[%clk 0:03:23]}  Qf6 {[%clk 0:00:54]} 41. Qb8 {[%clk 0:29:12]}  Qe7 {[%clk 0:24:16]} 42. Rf4 {[%clk 0:29:13]}  Rf6 {[%clk 0:24:37]}
43. Qc8 {[%clk 0:25:34]}  Rf8 {[%clk 0:21:56]} 44. Nxd5 {[%clk 0:16:17]}  Bxd5 {[%clk 0:21:48]} 45. Qc5 {[%clk 0:16:43]}  Bxf3+ {[%clk 0:19:48]}
46. exf3 {[%clk 0:15:28]}  Qxc5 {[%clk 0:19:32]} 47. dxc5 {[%clk 0:15:54]}  Nd3 {[%clk 0:15:02]} 48. Rxc4 {[%clk 0:16:20]}  Nxb2 {[%clk 0:09:32]}
49. Rb4 {[%clk 0:16:32]}  Nd3 {[%clk 0:09:19]} 50. Rxb3 {[%clk 0:16:59]}  Nxc5 {[%clk 0:09:44]} 51. Rb5 {[%clk 0:16:27]}  Nd3 {[%clk 0:09:52]}
52. Kf1 {[%clk 0:14:57]}  f4 {[%clk 0:03:28]} 53. Ke2 {[%clk 0:11:06]}  Rd8 {[%clk 0:03:17]} 54. Rf5 {[%clk 0:09:25]}  Nc1+ {[%clk 0:03:04]}
55. Kf1 {[%clk 0:06:30]}  Rd1+ {[%clk 0:02:19]} 56. Kg2 {[%clk 0:06:56]}  Nd3 {[%clk 0:02:02]} 57. gxf4 {[%clk 0:06:22]}  Ne1+ {[%clk 0:01:30]}
58. Kg3 {[%clk 0:06:01]}  Rd3 {[%clk 0:01:46]} 59. Kg4 {[%clk 0:05:06]}  Nxf3 {[%clk 0:01:42]} 60. Ra5 {[%clk 0:05:02]}  Nh2+ {[%clk 0:01:21]}
61. Kf5 {[%clk 0:04:31]}  Rf3 {[%clk 0:00:50]} 62. Kg5 {[%clk 0:01:37]}  Rxf2 {[%clk 0:00:51]} 63. Ra6 {[%clk 0:01:34]}  Rg2+ {[%clk 0:01:08]}
64. Kh4 {[%clk 0:00:52]}  Nf3+ {[%clk 0:01:02]} 65. Kh3 {[%clk 0:01:18]}  Rg1 {[%clk 0:01:01]} 66. f5 {[%clk 0:01:30]}  Ng5+ {[%clk 0:01:12]}
67. Kh4 {[%clk 0:01:00]}  Nf3+ {[%clk 0:01:41]} 68. Kh3 {[%clk 0:01:25]}  Ng5+ {[%clk 0:00:50]} 69. Kh4 {[%clk 0:01:50]}  Ne4 {[%clk 0:00:49]}
70. Ra8 {[%clk 0:00:43]}  Rh1+ {[%clk 0:00:58]} 71. Kg4 {[%clk 0:01:07]}  Nf6+ {[%clk 0:01:24]} 72. Kf4 {[%clk 0:01:12]}  Rxh5 {[%clk 0:01:21]}
73. Rb8 {[%clk 0:01:25]}  Rh4+ {[%clk 0:01:45]} 74. Kf3 {[%clk 0:00:44]}  Kh6 {[%clk 0:01:32]} 75. Rb7 {[%clk 0:00:42]}  Rd4 {[%clk 0:01:45]}
76. Rb1 {[%clk 0:00:47]}  Kg5 {[%clk 0:01:39]} 77. Rb5 {[%clk 0:00:36]}  Rf4+ {[%clk 0:02:00]} 78. Kg3 {[%clk 0:01:01]}  Rxf5 {[%clk 0:02:25]}
79. Rb7 {[%clk 0:01:24]}  Ne4+ {[%clk 0:02:32]} 80. Kg2 {[%clk 0:01:49]}  g6 {[%clk 0:02:57]} 81. Rg7 {[%clk 0:01:40]}  Kf6 {[%clk 0:02:48]}
82. Rg8 {[%clk 0:02:03]}  g5 {[%clk 0:03:05]} 83. Kg1 {[%clk 0:02:14]}  Ke5 {[%clk 0:03:23]} 84. Kg2 {[%clk 0:02:26]}  Kf4 {[%clk 0:03:47]}
85. Rg7 {[%clk 0:02:38]}  Rc5 {[%clk 0:03:28]} 86. Rf7+ {[%clk 0:02:51]}  Kg4 {[%clk 0:03:48]} 87. Ra7 {[%clk 0:01:29]}  Rc2+ {[%clk 0:04:13]}
88. Kg1 {[%clk 0:01:18]}  Ng3 {[%clk 0:04:29]} 89. Ra4+ {[%clk 0:01:37]}  Kf5 {[%clk 0:03:01]} 90. Ra5+ {[%clk 0:01:47]}  Kf4 {[%clk 0:03:14]}
91. Ra4+ {[%clk 0:00:36]}  Ne4 {[%clk 0:03:39]} 92. Ra8 {[%clk 0:00:38]}  g4 {[%clk 0:03:58]} 93. Ra3 {[%clk 0:00:47]}  g3 {[%clk 0:03:36]}
94. Ra8 {[%clk 0:01:06]}  Ng5 {[%clk 0:03:45]} 95. Ra4+ {[%clk 0:00:53]}  Kf3 {[%clk 0:04:00]} 96. Ra3+ {[%clk 0:01:04]}  Kg4 {[%clk 0:04:22]}
97. Kh1 {[%clk 0:00:42]}  g2+ {[%clk 0:04:18]} 98. Kg1 {[%clk 0:00:54]}  Nf3+ {[%clk 0:04:39]} 0-1

[Event "2026 European Womens Championship"]
[Site "Batumi, GE"]
[Date "2026.06.03"]
[Round "9"]
[White "Krkyasharyan, Sona"]
[Black "Abdinova, Narmin"]
[Result "0-1"]
[Board "55"]
[TimeControl "5400+30"]
[WhiteFideId "13316729"]
[BlackFideId "13425340"]
[WhiteElo "2063"]
[BlackElo "2165"]
[WhiteTitle "WFM"]
[BlackTitle "WIM"]
[WhiteClock "0:54:15"]
[BlackClock "0:16:29"]
[Variant "Standard"]

1. d4 {[%clk 1:30:58]}  Nf6 {[%clk 1:27:19]} 2. c4 {[%clk 1:31:24]}  e6 {[%clk 1:27:39]} 3. Nf3 {[%clk 1:31:50]}  Bb4+ {[%clk 1:27:34]}
4. Bd2 {[%clk 1:32:14]}  a5 {[%clk 1:27:40]} 5. g3 {[%clk 1:32:38]}  d5 {[%clk 1:27:16]} 6. Bg2 {[%clk 1:32:58]}  O-O {[%clk 1:27:25]}
7. Qc2 {[%clk 1:33:24]}  Ne4 {[%clk 1:08:58]} 8. O-O {[%clk 1:25:30]}  c6 {[%clk 1:00:40]} 9. Bxb4 {[%clk 1:21:23]}  axb4 {[%clk 1:01:03]}
10. Nbd2 {[%clk 1:21:10]}  f5 {[%clk 0:53:27]} 11. c5 {[%clk 1:17:06]}  b6 {[%clk 0:49:10]} 12. cxb6 {[%clk 1:15:49]}  Qxb6 {[%clk 0:49:11]}
13. Nb3 {[%clk 1:14:34]}  Nd7 {[%clk 0:46:03]} 14. Rfc1 {[%clk 1:10:21]}  Bb7 {[%clk 0:39:57]} 15. e3 {[%clk 1:09:04]}  Ra7 {[%clk 0:35:37]}
16. a4 {[%clk 1:00:10]}  bxa3 {[%clk 0:35:29]} 17. Rxa3 {[%clk 1:00:25]}  Rfa8 {[%clk 0:33:58]} 18. Rxa7 {[%clk 0:56:26]}  Rxa7 {[%clk 0:34:04]}
19. Nfd2 {[%clk 0:55:48]}  Nxd2 {[%clk 0:30:00]} 20. Nxd2 {[%clk 0:55:55]}  Ra2 {[%clk 0:30:12]} 21. Nb3 {[%clk 0:55:40]}  Ra4 {[%clk 0:30:04]}
22. Nd2 {[%clk 0:51:31]}  Ra2 {[%clk 0:28:13]} 23. Nb3 {[%clk 0:51:31]}  Qb4 {[%clk 0:20:20]} 24. Qc3 {[%clk 0:41:36]}  Qxc3 {[%clk 0:19:50]}
25. bxc3 {[%clk 0:42:02]}  Ba6 {[%clk 0:17:59]} 26. Ra1 {[%clk 0:41:28]}  Rxa1+ {[%clk 0:18:03]} 27. Nxa1 {[%clk 0:41:53]}  Nb6 {[%clk 0:11:53]}
28. Nc2 {[%clk 0:38:14]}  Na4 {[%clk 0:09:37]} 29. Nb4 {[%clk 0:38:38]}  Bb5 {[%clk 0:09:50]} 30. Na2 {[%clk 0:39:02]}  Bc4 {[%clk 0:10:14]}
31. Nb4 {[%clk 0:39:20]}  Bb5 {[%clk 0:10:30]} 32. Na2 {[%clk 0:39:43]}  g5 {[%clk 0:10:22]} 33. f3 {[%clk 0:39:23]}  Be2 {[%clk 0:05:46]}
34. Kf2 {[%clk 0:38:08]}  Bc4 {[%clk 0:05:53]} 35. Nb4 {[%clk 0:38:16]}  Nxc3 {[%clk 0:06:18]} 36. Nxc6 {[%clk 0:38:22]}  Nd1+ {[%clk 0:06:44]}
37. Kg1 {[%clk 0:38:46]}  Nxe3 {[%clk 0:07:10]} 38. Nd8 {[%clk 0:39:10]}  e5 {[%clk 0:04:02]} 39. Nc6 {[%clk 0:36:04]}  e4 {[%clk 0:01:09]}
40. Kf2 {[%clk 0:35:32]}  Nd1+ {[%clk 0:01:18]} 41. Ke1 {[%clk 0:35:55]}  Ne3 {[%clk 0:01:42]} 42. Kf2 {[%clk 0:36:11]}  f4 {[%clk 0:24:41]}
43. Bh1 {[%clk 0:58:21]}  Nd1+ {[%clk 0:17:55]} 44. Ke1 {[%clk 0:57:55]}  Nc3 {[%clk 0:18:22]} 45. gxf4 {[%clk 0:57:05]}  gxf4 {[%clk 0:14:06]}
46. Nd8 {[%clk 0:53:24]}  e3 {[%clk 0:18:31]} 47. Ne6 {[%clk 0:53:47]}  Ne2 {[%clk 0:18:57]} 48. Bg2 {[%clk 0:53:55]}  Kf7 {[%clk 0:18:22]}
49. Bh3 {[%clk 0:54:09]}  Kf6 {[%clk 0:17:29]} 50. Kd1 {[%clk 0:54:13]}  Ng1 {[%clk 0:16:20]} 51. Nxf4 {[%clk 0:54:15]}  e2+ {[%clk 0:16:29]} 0-1